[Event "Titled Tuesday Blitz January 03 Late 2023"]
[White "Moreno Perez, Tobias Sebastian"]
[Black "Hernandez Bonilla, Amelia"]
[WhiteFideId "186716"]
[BlackFideId "3900193"]
[WhiteElo "2256"]
[BlackElo "1960"]
[Result "1-0"]
[Round "07"]
[TimeControl "180+2"]
[Date "2023.01.03"]
[WhiteClock "0:02:35"]
[BlackClock "0:02:49"]

1. e4 {[%clk 0:03:00]}  c5 {[%clk 0:03:00]} 2. Nc3 {[%clk 0:03:00]}  Nc6 {[%clk 0:02:59]} 3. Nge2 {[%clk 0:03:00]}  g6 {[%clk 0:02:59]} 4. g3 {[%clk 0:03:00]}  Bg7 {[%clk 0:02:59]} 5. Bg2 {[%clk 0:03:01]}  e6 {[%clk 0:02:59]} 6. O-O {[%clk 0:03:01]}  Nge7 {[%clk 0:02:57]} 7. f4 {[%clk 0:03:01]}  d6 {[%clk 0:02:57]} 8. d3 {[%clk 0:03:00]}  O-O {[%clk 0:02:56]} 9. Kh1 {[%clk 0:03:00]}  f5 {[%clk 0:02:55]} 10. Be3 {[%clk 0:02:59]}  Nd4 {[%clk 0:02:53]} 11. a4 {[%clk 0:02:45]}  Rb8 {[%clk 0:02:53]} 12. a5 {[%clk 0:02:41]}  b6 {[%clk 0:02:52]} 13. axb6 {[%clk 0:02:40]}  axb6 {[%clk 0:02:53]} 14. Bxd4 {[%clk 0:02:36]}  c4 {[%clk 0:02:49]} 15. Bxg7 {[%clk 0:02:35]} 1-0


[Site "https://www.chess.com"]

[Event "Titled Tuesday Blitz January 03 Late 2023"]
[White "Zakarian, David"]
[Black "Fernandez Hernandez, Gerardo"]
[WhiteFideId "13301276"]
[BlackFideId "2207400"]
[WhiteElo "2306"]
[BlackElo "2181"]
[Result "1-0"]
[Round "07"]
[TimeControl "180+2"]
[Date "2023.01.03"]
[WhiteClock "0:01:43"]
[BlackClock "0:00:05"]

1. d4 {[%clk 0:03:00]}  Nf6 {[%clk 0:02:55]} 2. c4 {[%clk 0:03:00]}  e6 {[%clk 0:02:53]} 3. Nf3 {[%clk 0:03:00]}  Bb4+ {[%clk 0:02:53]} 4. Nbd2 {[%clk 0:03:00]}  O-O {[%clk 0:02:51]} 5. a3 {[%clk 0:03:00]}  Be7 {[%clk 0:02:51]} 6. e4 {[%clk 0:03:00]}  d6 {[%clk 0:02:51]} 7. Bd3 {[%clk 0:03:00]}  c5 {[%clk 0:02:51]} 8. d5 {[%clk 0:02:53]}  e5 {[%clk 0:02:49]} 9. h3 {[%clk 0:02:51]}  Nbd7 {[%clk 0:02:38]} 10. g4 {[%clk 0:02:49]}  g6 {[%clk 0:02:36]} 11. Nf1 {[%clk 0:02:46]}  Ne8 {[%clk 0:02:26]} 12. Bh6 {[%clk 0:02:42]}  Ng7 {[%clk 0:02:25]} 13. Ng3 {[%clk 0:02:42]}  Nf6 {[%clk 0:01:57]} 14. Qd2 {[%clk 0:02:35]}  Kh8 {[%clk 0:01:54]} 15. Rg1 {[%clk 0:02:31]}  Ng8 {[%clk 0:01:54]} 16. O-O-O {[%clk 0:02:10]}  Nxh6 {[%clk 0:01:38]} 17. Qxh6 {[%clk 0:02:11]}  Bd7 {[%clk 0:01:24]} 18. Nf5 {[%clk 0:01:54]}  gxf5 {[%clk 0:01:04]} 19. exf5 {[%clk 0:01:55]}  Rg8 {[%clk 0:00:58]} 20. f6 {[%clk 0:01:54]}  Nf5 {[%clk 0:00:33]} 21. Bxf5 {[%clk 0:01:52]}  Bxf5 {[%clk 0:00:31]} 22. fxe7 {[%clk 0:01:53]}  Qxe7 {[%clk 0:00:29]} 23. gxf5 {[%clk 0:01:53]}  e4 {[%clk 0:00:21]} 24. f6 {[%clk 0:01:47]}  Qf8 {[%clk 0:00:16]} 25. Rxg8+ {[%clk 0:01:43]}  Qxg8 {[%clk 0:00:12]} 26. Rg1 {[%clk 0:01:43]}  Qf8 {[%clk 0:00:10]} 27. Rg7 {[%clk 0:01:44]}  exf3 {[%clk 0:00:05]} 28. Qxh7# {[%clk 0:01:43]} 1-0


[Site "https://www.chess.com"]

[Event "Titled Tuesday Blitz January 03 Late 2023"]
[White "Tamarozi, Isabelle"]
[Black "Estrada Nieto, Julian"]
[WhiteFideId "2132400"]
[BlackFideId "5101018"]
[WhiteElo "1982"]
[BlackElo "2215"]
[Result "0-1"]
[Round "07"]
[TimeControl "180+2"]
[Date "2023.01.03"]
[WhiteClock "0:00:01"]
[BlackClock "0:00:37"]

1. e4 {[%clk 0:03:00]}  e5 {[%clk 0:02:59]} 2. Nf3 {[%clk 0:02:59]}  Nc6 {[%clk 0:03:00]} 3. Bb5 {[%clk 0:02:59]}  a6 {[%clk 0:03:00]} 4. Ba4 {[%clk 0:02:58]}  Nf6 {[%clk 0:03:00]} 5. d3 {[%clk 0:02:58]}  d6 {[%clk 0:02:57]} 6. c3 {[%clk 0:02:57]}  g6 {[%clk 0:02:57]} 7. O-O {[%clk 0:02:57]}  Bg7 {[%clk 0:02:57]} 8. Nbd2 {[%clk 0:02:56]}  O-O {[%clk 0:02:56]} 9. Qe2 {[%clk 0:02:55]}  Bd7 {[%clk 0:02:55]} 10. Rd1 {[%clk 0:02:54]}  Qe8 {[%clk 0:02:45]} 11. Bb3 {[%clk 0:02:50]}  Nh5 {[%clk 0:02:44]} 12. Nf1 {[%clk 0:02:48]}  Kh8 {[%clk 0:02:44]} 13. d4 {[%clk 0:02:40]}  exd4 {[%clk 0:02:38]} 14. cxd4 {[%clk 0:02:37]}  Bg4 {[%clk 0:02:38]} 15. d5 {[%clk 0:02:17]}  Nd4 {[%clk 0:02:26]} 16. Qe3 {[%clk 0:01:59]}  Nxf3+ {[%clk 0:02:04]} 17. gxf3 {[%clk 0:01:58]}  Bd7 {[%clk 0:02:02]} 18. Bd2 {[%clk 0:01:45]}  Be5 {[%clk 0:01:57]} 19. Bc3 {[%clk 0:01:43]}  f6 {[%clk 0:01:54]} 20. Ng3 {[%clk 0:01:29]}  Nf4 {[%clk 0:01:49]} 21. Ne2 {[%clk 0:01:05]}  g5 {[%clk 0:01:44]} 22. Nd4 {[%clk 0:00:57]}  Qh5 {[%clk 0:01:40]} 23. Bc4 {[%clk 0:00:38]}  Rg8 {[%clk 0:01:17]} 24. Ne6 {[%clk 0:00:20]}  Bxe6 {[%clk 0:01:08]} 25. dxe6 {[%clk 0:00:20]}  Qh3 {[%clk 0:01:02]} 26. Bf1 {[%clk 0:00:18]}  Qxe6 {[%clk 0:01:01]} 27. Bxe5 {[%clk 0:00:12]}  fxe5 {[%clk 0:01:00]} 28. b3 {[%clk 0:00:09]}  g4 {[%clk 0:00:59]} 29. Kh1 {[%clk 0:00:06]}  Rg5 {[%clk 0:00:48]} 30. fxg4 {[%clk 0:00:06]}  Qxg4 {[%clk 0:00:46]} 31. f3 {[%clk 0:00:05]}  Qh4 {[%clk 0:00:44]} 32. Qe1 {[%clk 0:00:03]}  Qh5 {[%clk 0:00:41]} 33. Qf2 {[%clk 0:00:03]}  Rag8 {[%clk 0:00:41]} 34. Bc4 {[%clk 0:00:02]}  Rg2 {[%clk 0:00:38]} 35. Qxg2 {[%clk 0:00:01]}  Rxg2 {[%clk 0:00:37]} 0-1


[Site "https://www.chess.com"]

[Event "Titled Tuesday Blitz January 03 Late 2023"]
[White "Seletsky, Grigory"]
[Black "Aung Thant Zin"]
[WhiteFideId "14112191"]
[BlackFideId "13000063"]
[WhiteElo "2259"]
[BlackElo "2268"]
[Result "1-0"]
[Round "07"]
[TimeControl "180+2"]
[Date "2023.01.03"]
[WhiteClock "0:00:48"]
[BlackClock "0:00:03"]

1. e4 {[%clk 0:02:54]}  c5 {[%clk 0:02:12]} 2. Nc3 {[%clk 0:02:53]}  a6 {[%clk 0:02:12]} 3. f4 {[%clk 0:02:51]}  e6 {[%clk 0:02:11]} 4. Nf3 {[%clk 0:02:51]}  d5 {[%clk 0:02:11]} 5. e5 {[%clk 0:02:48]}  Nc6 {[%clk 0:02:09]} 6. d4 {[%clk 0:02:48]}  cxd4 {[%clk 0:02:08]} 7. Nxd4 {[%clk 0:02:48]}  Nge7 {[%clk 0:02:09]} 8. Nce2 {[%clk 0:02:37]}  Nxd4 {[%clk 0:02:04]} 9. Nxd4 {[%clk 0:02:37]}  Nc6 {[%clk 0:02:04]} 10. Be3 {[%clk 0:02:19]}  Qb6 {[%clk 0:01:57]} 11. Rb1 {[%clk 0:02:07]}  Bc5 {[%clk 0:01:55]} 12. c3 {[%clk 0:02:05]}  Bd7 {[%clk 0:01:38]} 13. Qd2 {[%clk 0:02:04]}  Nxd4 {[%clk 0:01:28]} 14. Bxd4 {[%clk 0:02:03]}  Bxd4 {[%clk 0:01:28]} 15. Qxd4 {[%clk 0:02:01]}  Qxd4 {[%clk 0:01:28]} 16. cxd4 {[%clk 0:02:02]}  Rc8 {[%clk 0:01:28]} 17. Kd2 {[%clk 0:02:00]}  Ke7 {[%clk 0:01:22]} 18. Bd3 {[%clk 0:01:59]}  h6 {[%clk 0:01:16]} 19. h4 {[%clk 0:01:53]}  Bb5 {[%clk 0:00:48]} 20. Rbc1 {[%clk 0:01:51]}  Bxd3 {[%clk 0:00:45]} 21. Kxd3 {[%clk 0:01:51]}  Kd7 {[%clk 0:00:41]} 22. h5 {[%clk 0:01:48]}  b5 {[%clk 0:00:38]} 23. g4 {[%clk 0:01:45]}  Rc4 {[%clk 0:00:37]} 24. b3 {[%clk 0:01:45]}  Rcc8 {[%clk 0:00:31]} 25. Kd2 {[%clk 0:01:41]}  b4 {[%clk 0:00:18]} 26. f5 {[%clk 0:01:39]}  a5 {[%clk 0:00:14]} 27. Rxc8 {[%clk 0:01:07]}  Rxc8 {[%clk 0:00:13]} 28. Rc1 {[%clk 0:01:06]}  Rxc1 {[%clk 0:00:13]} 29. Kxc1 {[%clk 0:01:05]}  f6 {[%clk 0:00:11]} 30. Kd2 {[%clk 0:00:50]}  fxe5 {[%clk 0:00:10]} 31. dxe5 {[%clk 0:00:50]}  Ke7 {[%clk 0:00:07]} 32. Ke3 {[%clk 0:00:49]}  Kf7 {[%clk 0:00:06]} 33. Kd4 {[%clk 0:00:49]}  Ke7 {[%clk 0:00:04]} 34. Kc5 {[%clk 0:00:49]}  Kd7 {[%clk 0:00:04]} 35. fxe6+ {[%clk 0:00:47]}  Kxe6 {[%clk 0:00:03]} 36. Kd4 {[%clk 0:00:48]} 1-0


[Site "https://www.chess.com"]

[Event "Titled Tuesday Blitz January 03 Late 2023"]
[White "Lock, Gavin R"]
[Black "Suvorov, Luca"]
[WhiteFideId "408646"]
[BlackFideId "12977071"]
[WhiteElo "2083"]
[BlackElo "2310"]
[Result "0-1"]
[Round "07"]
[TimeControl "180+2"]
[Date "2023.01.03"]
[WhiteClock "0:00:01"]
[BlackClock "0:00:42"]

1. d4 {[%clk 0:03:00]}  d6 {[%clk 0:02:59]} 2. e4 {[%clk 0:02:55]}  Nd7 {[%clk 0:03:00]} 3. Nc3 {[%clk 0:02:54]}  e5 {[%clk 0:02:56]} 4. Nf3 {[%clk 0:02:54]}  Ngf6 {[%clk 0:02:53]} 5. Bc4 {[%clk 0:02:51]}  Be7 {[%clk 0:02:30]} 6. O-O {[%clk 0:02:50]}  O-O {[%clk 0:02:29]} 7. Re1 {[%clk 0:02:50]}  c6 {[%clk 0:02:28]} 8. a4 {[%clk 0:02:50]}  h6 {[%clk 0:02:25]} 9. Ba2 {[%clk 0:02:32]}  Re8 {[%clk 0:02:24]} 10. h3 {[%clk 0:02:23]}  Qc7 {[%clk 0:02:23]} 11. Be3 {[%clk 0:02:23]}  Nf8 {[%clk 0:02:20]} 12. Nh4 {[%clk 0:02:12]}  Be6 {[%clk 0:02:16]} 13. Bxe6 {[%clk 0:02:05]}  fxe6 {[%clk 0:01:43]} 14. dxe5 {[%clk 0:01:59]}  dxe5 {[%clk 0:01:44]} 15. Nf3 {[%clk 0:01:52]}  Rad8 {[%clk 0:01:42]} 16. Qe2 {[%clk 0:01:52]}  Bb4 {[%clk 0:01:40]} 17. Qc4 {[%clk 0:01:51]}  Bxc3 {[%clk 0:01:38]} 18. bxc3 {[%clk 0:01:51]}  b6 {[%clk 0:01:36]} 19. Reb1 {[%clk 0:01:42]}  Ng6 {[%clk 0:01:30]} 20. a5 {[%clk 0:01:41]}  b5 {[%clk 0:01:30]} 21. Rxb5 {[%clk 0:01:40]}  Nxe4 {[%clk 0:01:22]} 22. a6 {[%clk 0:01:08]}  Nd6 {[%clk 0:01:21]} 23. Qg4 {[%clk 0:01:02]}  Nxb5 {[%clk 0:01:18]} 24. Qxg6 {[%clk 0:01:02]}  Qf7 {[%clk 0:01:18]} 25. Qxf7+ {[%clk 0:01:00]}  Kxf7 {[%clk 0:01:19]} 26. Nxe5+ {[%clk 0:01:01]}  Kg8 {[%clk 0:01:17]} 27. Nxc6 {[%clk 0:01:00]}  Rd7 {[%clk 0:01:17]} 28. c4 {[%clk 0:00:58]}  Nd6 {[%clk 0:01:14]} 29. Ne5 {[%clk 0:00:48]}  Rc7 {[%clk 0:01:12]} 30. Rb1 {[%clk 0:00:42]}  Rec8 {[%clk 0:01:02]} 31. c5 {[%clk 0:00:36]}  Nf7 {[%clk 0:00:59]} 32. Nd3 {[%clk 0:00:26]}  Nd8 {[%clk 0:00:54]} 33. Bf4 {[%clk 0:00:25]}  Rd7 {[%clk 0:00:53]} 34. g4 {[%clk 0:00:17]}  Rc6 {[%clk 0:00:48]} 35. Ra1 {[%clk 0:00:14]}  Rc8 {[%clk 0:00:48]} 36. Kg2 {[%clk 0:00:14]}  Nc6 {[%clk 0:00:46]} 37. Bd6 {[%clk 0:00:13]}  Nd4 {[%clk 0:00:44]} 38. Ne5 {[%clk 0:00:13]}  Rdd8 {[%clk 0:00:43]} 39. Rb1 {[%clk 0:00:12]}  Nc6 {[%clk 0:00:42]} 40. f4 {[%clk 0:00:10]}  Nxe5 {[%clk 0:00:41]} 41. fxe5 {[%clk 0:00:11]}  Rc6 {[%clk 0:00:41]} 42. Ra1 {[%clk 0:00:07]}  Rdc8 {[%clk 0:00:41]} 43. Kf3 {[%clk 0:00:07]}  Kf7 {[%clk 0:00:40]} 44. Ke4 {[%clk 0:00:07]}  Ke8 {[%clk 0:00:41]} 45. Kd4 {[%clk 0:00:07]}  Kd7 {[%clk 0:00:41]} 46. Rb1 {[%clk 0:00:05]}  Rxa6 {[%clk 0:00:40]} 47. Rb7+ {[%clk 0:00:06]}  Kc6 {[%clk 0:00:41]} 48. Rxg7 {[%clk 0:00:04]}  Ra4+ {[%clk 0:00:41]} 49. c4 {[%clk 0:00:05]}  a5 {[%clk 0:00:41]} 50. Rg6 {[%clk 0:00:02]}  Ra1 {[%clk 0:00:42]} 51. Rxe6 {[%clk 0:00:02]}  a4 {[%clk 0:00:42]} 52. Re7 {[%clk 0:00:01]}  a3 {[%clk 0:00:42]} 53. Ra7 {[%clk 0:00:01]}  a2 {[%clk 0:00:42]} 0-1


[Site "https://www.chess.com"]

[Event "Titled Tuesday Blitz January 03 Late 2023"]
[White "marik_spb"]
[Black "qiaohu_henry"]
[WhiteElo "2401"]
[BlackElo "2253"]
[Result "0-1"]
[Round "07"]
[TimeControl "180+2"]
[Date "2023.01.03"]
[WhiteClock "0:00:05"]
[BlackClock "0:00:13"]

1. e4 {[%clk 0:03:00]}  e6 {[%clk 0:02:59]} 2. d4 {[%clk 0:03:00]}  d5 {[%clk 0:03:00]} 3. Nd2 {[%clk 0:03:00]}  Nf6 {[%clk 0:03:00]} 4. e5 {[%clk 0:02:55]}  Nfd7 {[%clk 0:03:00]} 5. f4 {[%clk 0:02:55]}  c5 {[%clk 0:03:00]} 6. c3 {[%clk 0:02:56]}  Nc6 {[%clk 0:02:57]} 7. Ngf3 {[%clk 0:02:56]}  Qb6 {[%clk 0:02:46]} 8. Nb3 {[%clk 0:02:55]}  a5 {[%clk 0:02:39]} 9. Be3 {[%clk 0:02:45]}  a4 {[%clk 0:02:35]} 10. dxc5 {[%clk 0:02:43]}  Nxc5 {[%clk 0:02:34]} 11. Nxc5 {[%clk 0:02:38]}  Bxc5 {[%clk 0:02:34]} 12. Bxc5 {[%clk 0:02:38]}  Qxc5 {[%clk 0:02:35]} 13. Nd4 {[%clk 0:02:36]}  Qb6 {[%clk 0:02:29]} 14. Bb5 {[%clk 0:02:30]}  Bd7 {[%clk 0:02:28]} 15. Bxc6 {[%clk 0:01:37]}  bxc6 {[%clk 0:02:24]} 16. O-O {[%clk 0:01:31]}  c5 {[%clk 0:02:23]} 17. Nf3 {[%clk 0:01:29]}  Qxb2 {[%clk 0:02:17]} 18. f5 {[%clk 0:01:15]}  Qxc3 {[%clk 0:02:14]} 19. fxe6 {[%clk 0:01:04]}  Bxe6 {[%clk 0:02:13]} 20. Rc1 {[%clk 0:01:00]}  Qe3+ {[%clk 0:02:13]} 21. Kh1 {[%clk 0:01:00]}  O-O {[%clk 0:01:57]} 22. Re1 {[%clk 0:01:00]}  Qa3 {[%clk 0:01:41]} 23. Ng5 {[%clk 0:00:49]}  h6 {[%clk 0:01:35]} 24. Nf3 {[%clk 0:00:38]}  Rfd8 {[%clk 0:01:17]} 25. Qc2 {[%clk 0:00:36]}  Rac8 {[%clk 0:00:57]} 26. Qd2 {[%clk 0:00:35]}  d4 {[%clk 0:00:56]} 27. Qf4 {[%clk 0:00:34]}  Qxa2 {[%clk 0:00:48]} 28. Nd2 {[%clk 0:00:30]}  d3 {[%clk 0:00:22]} 29. Ra1 {[%clk 0:00:27]}  Qd5 {[%clk 0:00:21]} 30. Rxa4 {[%clk 0:00:18]}  c4 {[%clk 0:00:21]} 31. Ne4 {[%clk 0:00:19]}  c3 {[%clk 0:00:19]} 32. Raa1 {[%clk 0:00:10]}  d2 {[%clk 0:00:18]} 33. Red1 {[%clk 0:00:10]}  Rc4 {[%clk 0:00:14]} 34. Nf6+ {[%clk 0:00:05]}  gxf6 {[%clk 0:00:14]} 35. Qg3+ {[%clk 0:00:05]}  Rg4 {[%clk 0:00:13]} 36. Qxc3 {[%clk 0:00:05]}  Qxg2# {[%clk 0:00:13]} 0-1


[Site "https://www.chess.com"]

[Event "Titled Tuesday Blitz January 03 Late 2023"]
[White "Harish, Neeraj"]
[Black "Ankerst, Mihael"]
[WhiteFideId "30958130"]
[BlackFideId "14602369"]
[WhiteElo "2232"]
[BlackElo "2370"]
[Result "0-1"]
[Round "07"]
[TimeControl "180+2"]
[Date "2023.01.03"]
[WhiteClock "0:00:01"]
[BlackClock "0:01:07"]

1. e4 {[%clk 0:02:55]}  c5 {[%clk 0:03:00]} 2. Nf3 {[%clk 0:02:54]}  Qb6 {[%clk 0:03:01]} 3. d4 {[%clk 0:02:50]}  cxd4 {[%clk 0:03:01]} 4. Nxd4 {[%clk 0:02:51]}  Nf6 {[%clk 0:02:55]} 5. Nc3 {[%clk 0:02:48]}  e5 {[%clk 0:02:55]} 6. Nf3 {[%clk 0:02:22]}  Bc5 {[%clk 0:02:49]} 7. Qe2 {[%clk 0:01:58]}  O-O {[%clk 0:02:47]} 8. g3 {[%clk 0:01:45]}  d6 {[%clk 0:02:36]} 9. Bg2 {[%clk 0:01:41]}  Bd4 {[%clk 0:02:28]} 10. Nxd4 {[%clk 0:00:52]}  exd4 {[%clk 0:02:24]} 11. Nd1 {[%clk 0:00:48]}  Bg4 {[%clk 0:02:10]} 12. f3 {[%clk 0:00:33]}  Be6 {[%clk 0:02:08]} 13. Bg5 {[%clk 0:00:19]}  Nbd7 {[%clk 0:01:57]} 14. O-O {[%clk 0:00:18]}  d3+ {[%clk 0:01:53]} 15. Qe3 {[%clk 0:00:18]}  dxc2 {[%clk 0:01:51]} 16. Qxb6 {[%clk 0:00:18]}  cxd1=Q {[%clk 0:01:34]} 17. Qxb7 {[%clk 0:00:17]}  Qd4+ {[%clk 0:01:29]} 18. Kh1 {[%clk 0:00:17]}  Rfb8 {[%clk 0:01:30]} 19. Qa6 {[%clk 0:00:15]}  Rxb2 {[%clk 0:01:25]} 20. Rad1 {[%clk 0:00:15]}  Qb6 {[%clk 0:01:24]} 21. Qxb6 {[%clk 0:00:14]}  Rxb6 {[%clk 0:01:20]} 22. f4 {[%clk 0:00:13]}  Rc8 {[%clk 0:01:17]} 23. Bxf6 {[%clk 0:00:09]}  Nxf6 {[%clk 0:01:15]} 24. e5 {[%clk 0:00:09]}  dxe5 {[%clk 0:01:14]} 25. fxe5 {[%clk 0:00:10]}  Ng4 {[%clk 0:01:15]} 26. Rf4 {[%clk 0:00:04]}  Ne3 {[%clk 0:01:13]} 27. Re1 {[%clk 0:00:03]}  Nxg2 {[%clk 0:01:10]} 28. Kxg2 {[%clk 0:00:04]}  Rb2+ {[%clk 0:01:09]} 29. Rf2 {[%clk 0:00:03]}  Rcc2 {[%clk 0:01:08]} 30. Rf1 {[%clk 0:00:01]}  Rxa2 {[%clk 0:01:07]} 0-1


[Site "https://www.chess.com"]

[Event "Titled Tuesday Blitz January 03 Late 2023"]
[White "Alexikov, Alexander"]
[Black "Schill, William"]
[WhiteFideId "14103958"]
[BlackFideId "2016710"]
[WhiteElo "2209"]
[BlackElo "2147"]
[Result "1-0"]
[Round "07"]
[TimeControl "180+2"]
[Date "2023.01.03"]
[WhiteClock "0:00:51"]
[BlackClock "0:00:08"]

1. e4 {[%clk 0:03:00]}  c5 {[%clk 0:02:58]} 2. Nf3 {[%clk 0:03:00]}  Nc6 {[%clk 0:02:58]} 3. Bb5 {[%clk 0:03:00]}  Nf6 {[%clk 0:02:46]} 4. e5 {[%clk 0:02:54]}  Ng4 {[%clk 0:02:43]} 5. Bxc6 {[%clk 0:02:52]}  dxc6 {[%clk 0:02:35]} 6. Qe2 {[%clk 0:02:52]}  g6 {[%clk 0:02:28]} 7. d3 {[%clk 0:02:50]}  Nh6 {[%clk 0:02:23]} 8. O-O {[%clk 0:02:37]}  Nf5 {[%clk 0:02:20]} 9. c3 {[%clk 0:02:37]}  Bg7 {[%clk 0:02:19]} 10. h3 {[%clk 0:02:32]}  h5 {[%clk 0:02:11]} 11. Bf4 {[%clk 0:02:30]}  O-O {[%clk 0:01:53]} 12. Nbd2 {[%clk 0:02:29]}  b6 {[%clk 0:01:50]} 13. Rad1 {[%clk 0:02:26]}  a5 {[%clk 0:01:50]} 14. a4 {[%clk 0:02:24]}  Ba6 {[%clk 0:01:49]} 15. Nc4 {[%clk 0:02:13]}  Bxc4 {[%clk 0:01:38]} 16. dxc4 {[%clk 0:02:11]}  Qc8 {[%clk 0:01:39]} 17. e6 {[%clk 0:02:00]}  Qxe6 {[%clk 0:01:32]} 18. Qxe6 {[%clk 0:01:57]}  fxe6 {[%clk 0:01:32]} 19. Ng5 {[%clk 0:01:51]}  Nd6 {[%clk 0:01:17]} 20. Bxd6 {[%clk 0:01:45]}  exd6 {[%clk 0:01:17]} 21. Rxd6 {[%clk 0:01:43]}  Rfd8 {[%clk 0:01:00]} 22. Rfd1 {[%clk 0:01:41]}  Rxd6 {[%clk 0:00:42]} 23. Rxd6 {[%clk 0:01:40]}  Bh6 {[%clk 0:00:42]} 24. Nf3 {[%clk 0:01:25]}  Bc1 {[%clk 0:00:39]} 25. b3 {[%clk 0:01:19]}  Bb2 {[%clk 0:00:31]} 26. Rxc6 {[%clk 0:01:18]}  Bxc3 {[%clk 0:00:30]} 27. Rxe6 {[%clk 0:01:16]}  Kg7 {[%clk 0:00:25]} 28. Rxb6 {[%clk 0:01:15]}  Rd8 {[%clk 0:00:25]} 29. Kf1 {[%clk 0:01:12]}  Rd1+ {[%clk 0:00:23]} 30. Ke2 {[%clk 0:01:12]}  Rb1 {[%clk 0:00:23]} 31. Ke3 {[%clk 0:01:08]}  Bb4 {[%clk 0:00:22]} 32. Kf4 {[%clk 0:01:02]}  Rxb3 {[%clk 0:00:21]} 33. Kg5 {[%clk 0:01:02]}  Bd2+ {[%clk 0:00:16]} 34. Nxd2 {[%clk 0:01:00]}  Rxb6 {[%clk 0:00:16]} 35. Ne4 {[%clk 0:00:58]}  Re6 {[%clk 0:00:14]} 36. Kf4 {[%clk 0:00:53]}  Rc6 {[%clk 0:00:12]} 37. Ke5 {[%clk 0:00:53]}  Kf7 {[%clk 0:00:08]} 38. Kd5 {[%clk 0:00:52]}  Rc8 {[%clk 0:00:08]} 39. Nd6+ {[%clk 0:00:51]} 1-0


[Site "https://www.chess.com"]

[Event "Titled Tuesday Blitz January 03 Late 2023"]
[White "Sabar, Ethmane Daouda"]
[Black "Desideri, Ricardo Maruchi"]
[WhiteFideId "19600097"]
[BlackFideId "2110440"]
[WhiteElo "2040"]
[BlackElo "1959"]
[Result "0-1"]
[Round "07"]
[TimeControl "180+2"]
[Date "2023.01.03"]
[WhiteClock "0:00:01"]
[BlackClock "0:00:11"]

1. d4 {[%clk 0:02:52]}  Nf6 {[%clk 0:02:58]} 2. Nc3 {[%clk 0:02:52]}  c5 {[%clk 0:02:52]} 3. d5 {[%clk 0:02:49]}  e6 {[%clk 0:02:51]} 4. e4 {[%clk 0:02:45]}  d6 {[%clk 0:02:44]} 5. Nf3 {[%clk 0:02:39]}  Be7 {[%clk 0:02:41]} 6. Bb5+ {[%clk 0:02:29]}  Bd7 {[%clk 0:02:35]} 7. dxe6 {[%clk 0:02:28]}  fxe6 {[%clk 0:02:27]} 8. Ng5 {[%clk 0:02:24]}  O-O {[%clk 0:02:21]} 9. Bc4 {[%clk 0:02:04]}  Qc8 {[%clk 0:02:10]} 10. e5 {[%clk 0:01:05]}  dxe5 {[%clk 0:02:08]} 11. O-O {[%clk 0:00:52]}  h6 {[%clk 0:02:06]} 12. Nge4 {[%clk 0:00:50]}  Bc6 {[%clk 0:01:37]} 13. Nd6 {[%clk 0:00:35]}  Qd7 {[%clk 0:01:19]} 14. Ndb5 {[%clk 0:00:23]}  Nd5 {[%clk 0:01:10]} 15. Bxd5 {[%clk 0:00:19]}  exd5 {[%clk 0:01:07]} 16. Na3 {[%clk 0:00:18]}  d4 {[%clk 0:01:01]} 17. Ne2 {[%clk 0:00:15]}  b5 {[%clk 0:01:00]} 18. c4 {[%clk 0:00:14]}  b4 {[%clk 0:00:57]} 19. Nc2 {[%clk 0:00:14]}  d3 {[%clk 0:00:56]} 20. Ng3 {[%clk 0:00:11]}  dxc2 {[%clk 0:00:54]} 21. Qxc2 {[%clk 0:00:12]}  Na6 {[%clk 0:00:46]} 22. Be3 {[%clk 0:00:12]}  Rad8 {[%clk 0:00:42]} 23. Rad1 {[%clk 0:00:12]}  Qe6 {[%clk 0:00:41]} 24. Ne4 {[%clk 0:00:11]}  Bxe4 {[%clk 0:00:39]} 25. Qxe4 {[%clk 0:00:12]}  Qf5 {[%clk 0:00:36]} 26. Qc6 {[%clk 0:00:10]}  Rf6 {[%clk 0:00:24]} 27. Rxd8+ {[%clk 0:00:09]}  Bxd8 {[%clk 0:00:23]} 28. Qa8 {[%clk 0:00:06]}  Qd7 {[%clk 0:00:16]} 29. b3 {[%clk 0:00:02]}  Kh7 {[%clk 0:00:15]} 30. Qe4+ {[%clk 0:00:01]}  Qf5 {[%clk 0:00:14]} 31. Qb7 {[%clk 0:00:01]}  Bb6 {[%clk 0:00:11]} 0-1


[Site "https://www.chess.com"]

[Event "Titled Tuesday Blitz January 03 Late 2023"]
[White "Sariego Figueredo, Wilfredo"]
[Black "Dias, Joao Batista"]
[WhiteFideId "3500080"]
[BlackFideId "2108240"]
[WhiteElo "2318"]
[BlackElo "1796"]
[Result "1-0"]
[Round "07"]
[TimeControl "180+2"]
[Date "2023.01.03"]
[WhiteClock "0:01:17"]
[BlackClock "0:01:20"]

1. d4 {[%clk 0:03:00]}  d5 {[%clk 0:02:59]} 2. Bf4 {[%clk 0:02:59]}  c6 {[%clk 0:02:59]} 3. e3 {[%clk 0:03:00]}  Nf6 {[%clk 0:02:58]} 4. Bd3 {[%clk 0:02:58]}  g6 {[%clk 0:02:58]} 5. c3 {[%clk 0:02:57]}  Bg7 {[%clk 0:02:58]} 6. Nd2 {[%clk 0:02:57]}  O-O {[%clk 0:02:59]} 7. Ngf3 {[%clk 0:02:57]}  Nbd7 {[%clk 0:02:59]} 8. h4 {[%clk 0:02:55]}  h5 {[%clk 0:02:57]} 9. Ne5 {[%clk 0:02:53]}  Nxe5 {[%clk 0:02:57]} 10. Bxe5 {[%clk 0:02:53]}  Ng4 {[%clk 0:02:56]} 11. Bxg7 {[%clk 0:02:51]}  Kxg7 {[%clk 0:02:57]} 12. Nf3 {[%clk 0:02:46]}  f5 {[%clk 0:02:51]} 13. Ng5 {[%clk 0:02:39]}  e5 {[%clk 0:02:46]} 14. dxe5 {[%clk 0:02:35]}  Nxe5 {[%clk 0:02:45]} 15. Be2 {[%clk 0:02:35]}  Qf6 {[%clk 0:02:42]} 16. Qc2 {[%clk 0:02:34]}  Bd7 {[%clk 0:02:41]} 17. O-O-O {[%clk 0:02:30]}  b5 {[%clk 0:02:40]} 18. Rd4 {[%clk 0:02:23]}  a5 {[%clk 0:02:38]} 19. Rhd1 {[%clk 0:02:08]}  a4 {[%clk 0:02:28]} 20. a3 {[%clk 0:02:04]}  Be6 {[%clk 0:02:20]} 21. g3 {[%clk 0:01:39]}  Rfc8 {[%clk 0:02:06]} 22. Kb1 {[%clk 0:01:37]}  Rab8 {[%clk 0:02:06]} 23. Ka1 {[%clk 0:01:35]}  Bg8 {[%clk 0:02:03]} 24. f4 {[%clk 0:01:32]}  Nc4 {[%clk 0:01:59]} 25. Bxc4 {[%clk 0:01:26]}  bxc4 {[%clk 0:01:59]} 26. Qxa4 {[%clk 0:01:25]}  Rb6 {[%clk 0:01:30]} 27. Qa7+ {[%clk 0:01:23]}  Kh6 {[%clk 0:01:22]} 28. Qxb6 {[%clk 0:01:21]}  Re8 {[%clk 0:01:21]} 29. R4d2 {[%clk 0:01:17]}  Rxe3 {[%clk 0:01:20]} 30. Qxe3 {[%clk 0:01:17]} 1-0


[Site "https://www.chess.com"]